fUST/lending_fUST_20240813
["ID","MTS","AMOUNT","RATE_DAILY","PERIOD"]
[334742437,1723528248994,-878.26322,0.00013698,2]
[334742438,1723528249003,-505.70706712,0.00013698,2]
[334742439,1723528249013,-878.26322,0.00013698,2]
[334742440,1723528249023,-878.26322,0.00013698,2]
[334742441,1723528249032,-500.0,0.00013698,2]
[334742442,1723528249042,-878.26322,0.00013698,2]
[334742443,1723528249051,-878.26322,0.00013698,2]
[334742444,1723528249061,-878.263228,0.00013698,2]
[334742445,1723528249071,-510.26957456,0.00013698,2]
[334742446,1723528249080,-500.0,0.00013698,2]
[334742447,1723528249089,-503.33068561,0.00013698,2]
[334742448,1723528249099,-500.0,0.00013698,2]
[334742449,1723528249111,-500.0,0.00013698,2]
[334742450,1723528249120,-1376.63,0.00013698,2]
[334742451,1723528249129,-500.0,0.00013698,2]
[334742452,1723528249138,-502.33741563,0.00013698,2]
[334742453,1723528249149,-151.0,0.00013698,2]
[334742454,1723528249159,-506.59051584,0.00013698,2]
[334742455,1723528249168,-151.0,0.00013698,2]
[334742456,1723528249178,-154.0882096,0.00013699,2]
[334742457,1723528249189,-151.0,0.00013699,2]
[334742458,1723528249198,-151.0,0.00013699,2]
[334742459,1723528249208,-151.0,0.00013699,2]
[334742460,1723528249217,-151.0,0.00013699,2]
[334742461,1723528249227,-151.0,0.00013699,2]
[334742462,1723528249236,-151.0,0.00013699,2]
[334742463,1723528249246,-151.0,0.00013699,2]
[334742464,1723528249256,-151.0,0.00013699,2]
[334742465,1723528249265,-151.0,0.00013699,2]
[334742466,1723528249275,-151.0,0.00013699,2]
[334742467,1723528249285,-151.0,0.00013699,2]
[334742468,1723528249294,-235.834234,0.00013699,2]
[334742469,1723528249304,-3519.564297,0.00013699,2]
[334742470,1723528249314,-24369.9416167,0.00013699,2]
[334742471,1723528249324,-3000.0,0.00013699,2]
[334742472,1723528249334,-1000.0,0.00013699,2]
[334742473,1723528249343,-1000.0,0.00013699,2]
[334742474,1723528249352,-1000.0,0.00013699,2]
[334742475,1723528249362,-1000.0,0.00013699,2]
[334742476,1723528249371,-1000.0,0.00013699,2]
[334742477,1723528249381,-1000.0,0.00013699,2]
[334742478,1723528249391,-1000.0,0.00013699,2]
[334742479,1723528249400,-1000.0,0.00013699,2]
[334742480,1723528249409,-1000.0,0.00013699,2]
[334742481,1723528249419,-1000.0,0.00013699,2]
[334742482,1723528249429,-1000.0,0.00013699,2]
[334742483,1723528249438,-1000.0,0.00013699,2]
[334742484,1723528249448,-1000.0,0.00013699,2]
[334742485,1723528249458,-1000.0,0.00013699,2]
[334742486,1723528249468,-1000.0,0.00013699,2]
[334742487,1723528249478,-1000.0,0.00013699,2]
[334742488,1723528249488,-1000.0,0.00013699,2]
[334742489,1723528249499,-1000.0,0.00013699,2]
[334742490,1723528249509,-1000.0,0.00013699,2]
[334742491,1723528249518,-1000.0,0.00013699,2]
[334742492,1723528249528,-1000.0,0.00013699,2]
[334742493,1723528249537,-1000.0,0.00013699,2]
[334742494,1723528249547,-1000.0,0.00013699,2]
[334742495,1723528249556,-1000.0,0.00013699,2]
[334742496,1723528249566,-1000.0,0.00013699,2]
[334742497,1723528249576,-1000.0,0.00013699,2]
[334742498,1723528249585,-1000.0,0.00013699,2]
[334742499,1723528249595,-1000.0,0.00013699,2]
[334742500,1723528249605,-1000.0,0.00013699,2]
[334742501,1723528249724,-1000.0,0.00013699,2]
[334742502,1723528249734,-1000.0,0.00013699,2]
[334742503,1723528249744,-1000.0,0.00013699,2]
[334742504,1723528249753,-1000.0,0.00013699,2]
[334742505,1723528249763,-1000.0,0.00013699,2]
[334742506,1723528249772,-1000.0,0.00013699,2]
[334742507,1723528249782,-1000.0,0.00013699,2]
[334742508,1723528249791,-1000.0,0.00013699,2]
[334742509,1723528249801,-1000.0,0.00013699,2]
[334742510,1723528249811,-1000.0,0.00013699,2]
[334742511,1723528249821,-1000.0,0.00013699,2]
[334742512,1723528249831,-1000.0,0.00013699,2]
[334742513,1723528249841,-1000.0,0.00013699,2]
[334742514,1723528249850,-1000.0,0.00013699,2]
[334742515,1723528249860,-1000.0,0.00013699,2]
[334742516,1723528249870,-1000.0,0.00013699,2]
[334742517,1723528249880,-1000.0,0.00013699,2]
[334742518,1723528249890,-1000.0,0.00013699,2]
[334742519,1723528249899,-1000.0,0.00013699,2]
[334742520,1723528249910,-1000.0,0.00013699,2]
[334742521,1723528249921,-1000.0,0.00013699,2]
[334742522,1723528249930,-1000.0,0.00013699,2]
[334742523,1723528249940,-1000.0,0.00013699,2]
[334742524,1723528249950,-1000.0,0.00013699,2]
[334742525,1723528249960,-1000.0,0.00013699,2]
[334742526,1723528249969,-1000.0,0.00013699,2]
[334742527,1723528249979,-1000.0,0.00013699,2]
[334742528,1723528249989,-1000.0,0.00013699,2]
[334742529,1723528250001,-1000.0,0.00013699,2]
[334742530,1723528250011,-1000.0,0.00013699,2]
[334742531,1723528250020,-1000.0,0.00013699,2]
[334742532,1723528250030,-1000.0,0.00013699,2]
[334742533,1723528250040,-1000.0,0.00013699,2]
[334742534,1723528250050,-1000.0,0.00013699,2]
[334742535,1723528250060,-1000.0,0.00013699,2]
[334742536,1723528250070,-1000.0,0.00013699,2]
[334742537,1723528250080,-1000.0,0.00013699,2]
[334742538,1723528250089,-1000.0,0.00013699,2]
[334742539,1723528250099,-1000.0,0.00013699,2]
[334742540,1723528250111,-1000.0,0.00013699,2]
[334742541,1723528250121,-866.570432,0.00013699,2]
[334742542,1723528250130,-207.3387286,0.00013699,2]
[334742543,1723528250140,-524.48160941,0.00013699,2]
[334742544,1723528250150,-440.71163151,0.00013699,2]
[334742545,1723528250161,-500.0,0.00013699,2]
[334742546,1723528250171,-500.0,0.00013699,2]
[334742547,1723528250182,-500.0,0.00013699,2]
[334742548,1723528250192,-500.0,0.00013699,2]
[334742549,1723528250202,-500.0,0.00013699,2]
[334742550,1723528250211,-500.0,0.00013699,2]
[334742551,1723528250222,-500.0,0.00013699,2]
[334742552,1723528250234,-500.0,0.00013699,2]
[334742553,1723528250245,-500.0,0.00013699,2]
[334742554,1723528250254,-500.0,0.00013699,2]
[334742555,1723528250263,-500.0,0.00013699,2]
[334742556,1723528250273,-500.0,0.00013699,2]
[334742557,1723528250283,-500.0,0.00013699,2]
[334742558,1723528250292,-500.0,0.00013699,2]
[334742559,1723528250301,-500.0,0.00013699,2]
[334742560,1723528250311,-500.0,0.00013699,2]
[334742561,1723528250321,-500.0,0.00013699,2]
[334742562,1723528250331,-500.0,0.00013699,2]
[334742563,1723528250340,-500.0,0.00013699,2]
[334742564,1723528250350,-500.0,0.00013699,2]
[334742565,1723528250359,-500.0,0.00013699,2]
[334742566,1723528250369,-500.0,0.00013699,2]
[334742567,1723528250378,-500.0,0.00013699,2]
[334742568,1723528250388,-500.0,0.00013699,2]
[334742569,1723528250397,-500.0,0.00013699,2]
[334742570,1723528250407,-500.0,0.00013699,2]
[334742571,1723528250417,-597.77719936,0.00013699,2]
[334742572,1723528250427,-500.0,0.00013699,2]
[334742573,1723528250437,-500.0,0.00013699,2]
[334742574,1723528250447,-500.0,0.00013699,2]
[334742575,1723528250456,-500.0,0.00013699,2]
[334742576,1723528250466,-500.0,0.00013699,2]
[334742577,1723528250476,-500.0,0.00013699,2]
[334742578,1723528250486,-500.0,0.00013699,2]
[334742579,1723528250497,-500.0,0.00013699,2]
[334742580,1723528250508,-500.0,0.00013699,2]
[334742581,1723528250518,-500.0,0.00013699,2]
[334742582,1723528250528,-500.0,0.00013699,2]
[334742583,1723528250538,-500.0,0.00013699,2]
[334742584,1723528250547,-412.28919406,0.00013699,2]
[334742585,1723528250558,-500.0,0.00013699,2]
[334742586,1723528250568,-500.0,0.00013699,2]
[334742587,1723528250578,-500.0,0.00013699,2]
[334742588,1723528250587,-500.0,0.00013699,2]
[334742589,1723528250597,-500.0,0.00013699,2]
[334742590,1723528250608,-500.0,0.00013699,2]
[334742591,1723528250618,-500.0,0.00013699,2]
[334742592,1723528250627,-224.4979989,0.00013699,2]
[334742593,1723528250638,-500.0,0.00013699,2]
[334742594,1723528250647,-500.0,0.00013699,2]
[334742595,1723528250657,-500.0,0.00013699,2]
[334742596,1723528250667,-500.0,0.00013699,2]
[334742597,1723528250677,-500.0,0.00013699,2]
[334742598,1723528250687,-500.0,0.00013699,2]
[334742599,1723528250697,-500.0,0.00013699,2]
[334742600,1723528250707,-500.0,0.00013699,2]
[334742601,1723528250717,-500.0,0.00013699,2]
[334742602,1723528250727,-500.0,0.00013699,2]
[334742603,1723528250738,-500.0,0.00013699,2]
[334742604,1723528250751,-500.0,0.00013699,2]
[334742605,1723528250765,-500.0,0.00013699,2]
[334742606,1723528250775,-500.0,0.00013699,2]
[334742607,1723528250784,-500.0,0.00013699,2]
[334742608,1723528250794,-500.0,0.00013699,2]
[334742609,1723528250803,-500.0,0.00013699,2]
[334742610,1723528250814,-500.0,0.00013699,2]
[334742611,1723528250824,-450.0,0.00013699,2]
[334742612,1723528250837,-1642.85714286,0.00013699,2]
[334742613,1723528250847,-1642.85714286,0.00013699,2]
[334742614,1723528250856,-1642.85714286,0.00013699,2]
[334742615,1723528250866,-1642.85714286,0.00013699,2]
[334742616,1723528250876,-1642.85714286,0.00013699,2]
[334742617,1723528250887,-1642.85714286,0.00013699,2]
[334742618,1723528250898,-1642.85714286,0.00013699,2]
[334742619,1723528250907,-151.0,0.00013699,2]
[334742620,1723528250918,-174.118154,0.00013699,2]
[334742621,1723528250927,-289.671765,0.00013699,2]
[334742622,1723528250937,-180.322037,0.00013699,2]
[334742623,1723528250948,-180.322046,0.00013699,2]
[334742624,1723528250958,-151.0,0.00013699,2]
[334742625,1723528250968,-150.112234,0.000137,2]
[334742626,1723528250978,-153.0,0.000137,2]
[334742627,1723528250988,-150.112233,0.000137,2]
[334742628,1723528251004,-545.20317859,0.00013701,2]
[334742629,1723528251013,-4864.45853342,0.00013823,2]
[334742630,1723528251023,-420.0,0.00013836,2]
[334742631,1723528251034,-151.0,0.0001397,2]
[334742632,1723528251044,-500.0,0.0001397,2]
[334742633,1723528251055,-500.0,0.00013971,2]
[334742634,1723528251065,-500.0,0.00013971,2]
[334742635,1723528251076,-500.0,0.00013971,2]
[334742636,1723528251086,-500.0,0.00013971,2]
[334742637,1723528251096,-571.14,0.00013971,2]
[334742638,1723528251109,-571.14,0.00013971,2]
[334742639,1723528251126,-571.14,0.00013971,2]
[334742640,1723528251141,-571.14,0.00013971,2]
[334742641,1723528251153,-571.35,0.00013971,2]
[334742642,1723528251164,-293.391371,0.00013972,2]
[334742643,1723528251173,-538.07066586,0.00013972,2]
[334742644,1723528251184,-285.46548247,0.00013972,2]
[334742645,1723528251194,-500.0,0.00013972,2]
[334742646,1723528251203,-500.0,0.00013972,2]
[334742647,1723528251213,-500.0,0.00013972,2]
[334742648,1723528251223,-500.0,0.00013972,2]
[334742649,1723528251233,-686.73,0.00013972,2]
[334742650,1723528251242,-500.0,0.00013972,2]
[334742651,1723528251256,-503.80614927,0.00013972,2]
[334742652,1723528251265,-506.89525715,0.00013972,2]
[334742653,1723528251275,-500.0,0.00013972,2]
[334742654,1723528251286,-500.0,0.00013972,2]
[334742655,1723528251295,-510.71182565,0.00013972,2]
[334742656,1723528251305,-197.99232696,0.00013972,2]
[334742657,1723528251315,-500.0,0.00013972,2]
[334742658,1723528251325,-500.0,0.00013972,2]
[334742659,1723528251334,-500.0,0.00013972,2]
[334742660,1723528251344,-500.0,0.00013972,2]
[334742661,1723528251354,-500.0,0.00013972,2]
[334742662,1723528251364,-500.0,0.00013972,2]
[334742663,1723528251374,-500.0,0.00013972,2]
[334742664,1723528251384,-742.44,0.00013972,2]
[334742665,1723528251394,-500.0,0.00013972,2]
[334742666,1723528251404,-500.0,0.00013972,2]
[334742667,1723528251414,-500.0,0.00013972,2]
[334742668,1723528251423,-500.0,0.00013972,2]
[334742669,1723528251433,-500.0,0.00013972,2]
[334742670,1723528251443,-500.0,0.00013972,2]
[334742671,1723528251453,-500.0,0.00013972,2]
[334742672,1723528251463,-500.0,0.00013972,2]
[334742673,1723528251472,-509.77033415,0.00013972,2]
[334742674,1723528251483,-500.0,0.00013972,2]
[334742675,1723528251492,-507.14,0.00013972,2]
[334742676,1723528251503,-500.0,0.00013972,2]
[334742677,1723528251512,-500.0,0.00013972,2]
[334742678,1723528251522,-500.0,0.00013972,2]
[334742679,1723528251532,-506.45694896,0.00013972,2]
[334742680,1723528251542,-606.8,0.00013972,2]
[334742681,1723528251551,-500.0,0.00013972,2]
[334742682,1723528251561,-500.0,0.00013972,2]
[334742683,1723528251571,-500.0,0.00013972,2]
[334742684,1723528251580,-500.0,0.00013972,2]
[334742685,1723528251590,-500.0,0.00013972,2]
[334742686,1723528251601,-500.0,0.00013972,2]
[334742687,1723528251610,-500.0,0.00013972,2]
[334742688,1723528251621,-500.0,0.00013972,2]
[334742689,1723528251631,-500.0,0.00013972,2]
[334742690,1723528251641,-500.0,0.00013972,2]
[334742691,1723528251651,-500.0,0.00013972,2]
[334742692,1723528251661,-537.87,0.00013972,2]
[334742693,1723528251671,-509.28732185,0.00013972,2]
[334742694,1723528251683,-500.0,0.00013972,2]
[334742695,1723528251694,-500.0,0.00013972,2]
[334742696,1723528251705,-500.0,0.00013972,2]
[334742697,1723528251716,-500.0,0.00013972,2]
[334742698,1723528251727,-500.0,0.00013972,2]
[334742699,1723528251738,-500.0,0.00013972,2]
[334742700,1723528251748,-503.10120113,0.00013972,2]
[334742701,1723528251758,-500.0,0.00013972,2]
[334742702,1723528251768,-500.0,0.00013972,2]
[334742703,1723528251778,-805.4,0.00013972,2]
[334742704,1723528251788,-500.0,0.00013972,2]
[334742705,1723528251798,-500.0,0.00013972,2]
[334742706,1723528251807,-500.0,0.00013972,2]
[334742707,1723528251818,-500.0,0.00013972,2]
[334742708,1723528251827,-500.0,0.00013972,2]
[334742709,1723528251838,-500.0,0.00013972,2]
[334742710,1723528251847,-500.0,0.00013972,2]
[334742711,1723528251858,-500.0,0.00013972,2]
[334742712,1723528251867,-541.92,0.00013972,2]
[334742713,1723528251878,-500.0,0.00013972,2]
[334742714,1723528251887,-500.0,0.00013972,2]
[334742715,1723528251898,-560.86,0.00013972,2]
[334742716,1723528251908,-500.0,0.00013972,2]
[334742717,1723528251918,-500.0,0.00013972,2]
[334742718,1723528251927,-500.0,0.00013972,2]
[334742719,1723528251937,-500.0,0.00013972,2]
[334742720,1723528251947,-500.0,0.00013972,2]
[334742721,1723528251957,-500.0,0.00013972,2]
[334742722,1723528251970,-500.0,0.00013972,2]
[334742723,1723528251980,-500.0,0.00013972,2]
[334742724,1723528251990,-500.0,0.00013972,2]
[334742725,1723528252001,-500.0,0.00013972,2]
[334742726,1723528252010,-500.0,0.00013972,2]
[334742727,1723528252020,-504.93221974,0.00013972,2]
[334742728,1723528252029,-616.34,0.00013972,2]
[334742729,1723528252039,-500.0,0.00013972,2]
[334742730,1723528252049,-500.0,0.00013972,2]
[334742731,1723528252060,-507.02549008,0.00013972,2]
[334742732,1723528252070,-506.37693255,0.00013972,2]
[334742733,1723528252080,-500.0,0.00013972,2]
[334742734,1723528252089,-500.0,0.00013972,2]
[334742735,1723528252099,-500.0,0.00013972,2]
[334742736,1723528252111,-500.0,0.00013972,2]
[334742737,1723528252120,-555.29638205,0.00013972,2]
[334742738,1723528252129,-561.5535722,0.00013972,2]
[334742739,1723528252138,-500.0,0.00013972,2]
[334742740,1723528252148,-858.14,0.00013972,2]
[334742741,1723528252157,-579.41162,0.00013972,2]
[334742742,1723528252166,-500.0,0.00013972,2]
[334742743,1723528252175,-500.0,0.00013972,2]
[334742744,1723528252186,-438.63773056,0.00013972,2]
[334742745,1723528252196,-505.23657201,0.00013972,2]
[334742746,1723528252205,-500.0,0.00013972,2]
[334742747,1723528252218,-505.59341651,0.00013972,2]
[334742748,1723528252229,-506.33954523,0.00013972,2]
[334742749,1723528252239,-500.0,0.00013972,2]
[334742750,1723528252249,-500.0,0.00013972,2]
[334742751,1723528252259,-500.0,0.00013972,2]
[334742752,1723528252268,-500.0,0.00013972,2]
[334742753,1723528252279,-500.0,0.00013972,2]
[334742754,1723528252289,-504.46577119,0.00013972,2]
[334742755,1723528252299,-500.0,0.00013972,2]
[334742756,1723528252309,-505.99767687,0.00013972,2]
[334742757,1723528252319,-500.0,0.00013972,2]
[334742758,1723528252328,-500.0,0.00013972,2]
[334742759,1723528252338,-736.29,0.00013972,2]
[334742760,1723528252349,-500.0,0.00013972,2]
[334742761,1723528252359,-500.0,0.00013972,2]
[334742762,1723528252370,-510.64760496,0.00013972,2]
[334742763,1723528252379,-500.0,0.00013972,2]
[334742764,1723528252389,-500.0,0.00013972,2]
[334742765,1723528252399,-500.0,0.00013972,2]
[334742766,1723528252410,-442.59706221,0.00013972,2]
[334742767,1723528252420,-500.0,0.00013972,2]
[334742768,1723528252431,-500.0,0.00013972,2]
[334742769,1723528252441,-500.0,0.00013972,2]
[334742770,1723528252452,-500.0,0.00013972,2]
[334742771,1723528252462,-501.44520048,0.00013972,2]
[334742772,1723528252616,-500.0,0.00013972,2]
[334742773,1723528252629,-500.0,0.00013972,2]
[334742774,1723528252639,-507.12995694,0.00013972,2]
[334742775,1723528252649,-504.83601221,0.00013972,2]
[334742776,1723528252658,-500.0,0.00013972,2]
[334742777,1723528252668,-500.0,0.00013972,2]
[334742778,1723528252680,-500.0,0.00013972,2]
[334742779,1723528252689,-500.0,0.00013972,2]
[334742780,1723528252699,-506.87032051,0.00013972,2]
[334742781,1723528252710,-500.0,0.00013972,2]
[334742782,1723528252719,-500.0,0.00013972,2]
[334742783,1723528252729,-588.38,0.00013972,2]
[334742784,1723528252739,-500.0,0.00013972,2]
[334742785,1723528252748,-768.16,0.00013972,2]
[334742786,1723528252758,-525.24,0.00013972,2]
[334742787,1723528252767,-500.0,0.00013972,2]
[334742788,1723528252777,-503.6395211,0.00013972,2]
[334742789,1723528252786,-876.74,0.00013972,2]
[334742790,1723528252796,-500.0,0.00013972,2]
[334742791,1723528252807,-861.35,0.00013972,2]
[334742792,1723528252817,-500.0,0.00013972,2]
[334742793,1723528252830,-500.0,0.00013972,2]
[334742794,1723528252840,-500.0,0.00013972,2]
[334742795,1723528252850,-500.0,0.00013972,2]
[334742796,1723528252859,-500.0,0.00013972,2]
[334742797,1723528252869,-692.66,0.00013972,2]
[334742798,1723528252880,-506.75545438,0.00013972,2]
[334742799,1723528252889,-1178.89,0.00013972,2]
[334742800,1723528252901,-988.07,0.00013972,2]
[334742801,1723528252910,-500.0,0.00013972,2]
[334742802,1723528252921,-1131.39,0.00013972,2]
[334742803,1723528252932,-504.48336683,0.00013972,2]
[334742804,1723528252942,-656.27,0.00013972,2]
[334742805,1723528252952,-500.0,0.00013972,2]
[334742806,1723528252963,-918.67,0.00013972,2]
[334742807,1723528252972,-500.0,0.00013972,2]
[334742808,1723528252983,-500.0,0.00013972,2]
[334742809,1723528252993,-1317.03,0.00013972,2]
[334742810,1723528253005,-960.13,0.00013972,2]
[334742811,1723528253016,-500.0,0.00013972,2]
[334742812,1723528253027,-500.0,0.00013972,2]
[334742813,1723528253039,-500.0,0.00013972,2]
[334742814,1723528253049,-500.0,0.00013972,2]
[334742815,1723528253059,-5634.47,0.00013972,2]
[334742816,1723528253071,-500.0,0.00013972,2]
[334742817,1723528253082,-500.0,0.00013972,2]
[334742818,1723528253091,-500.0,0.00013972,2]
[334742819,1723528253101,-500.0,0.00013972,2]
[334742820,1723528253115,-506.73503378,0.00013972,2]
[334742821,1723528253126,-504.932046,0.00013972,2]
[334742822,1723528253136,-500.0,0.00013972,2]
[334742823,1723528253147,-2786.95,0.00013972,2]
[334742824,1723528253156,-745.94,0.00013972,2]
[334742825,1723528253166,-500.0,0.00013972,2]
[334742826,1723528253175,-1275.19,0.00013972,2]
[334742827,1723528253186,-500.0,0.00013972,2]
[334742828,1723528253197,-506.3500057,0.00013972,2]
[334742829,1723528253206,-500.0,0.00013972,2]
[334742830,1723528253216,-597.76,0.00013972,2]
[334742831,1723528253227,-1127.54,0.00013972,2]
[334742832,1723528253236,-500.0,0.00013972,2]
[334742833,1723528253247,-500.0,0.00013972,2]
[334742834,1723528253257,-500.0,0.00013972,2]
[334742835,1723528253267,-503.56683525,0.00013972,2]
[334742836,1723528253279,-1054.34,0.00013972,2]
[334742837,1723528253288,-4063.87,0.00013972,2]
[334742838,1723528253298,-3904.44,0.00013972,2]
[334742839,1723528253308,-500.0,0.00013972,2]
[334742840,1723528253319,-597.51,0.00013972,2]
[334742841,1723528253331,-1869.86,0.00013972,2]
[334742842,1723528253342,-500.0,0.00013972,2]
[334742843,1723528253353,-926.74,0.00013972,2]
[334742844,1723528253363,-507.22532629,0.00013972,2]
[334742845,1723528253372,-500.0,0.00013972,2]
[334742846,1723528253382,-1000.64,0.00013972,2]
[334742847,1723528253391,-604.28,0.00013972,2]
[334742848,1723528253402,-1727.88,0.00013972,2]
[334742849,1723528253414,-1280.01,0.00013972,2]
[334742850,1723528253424,-500.0,0.00013972,2]
[334742851,1723528253434,-500.0,0.00013972,2]
[334742852,1723528253446,-1180.87,0.00013972,2]
[334742853,1723528253456,-500.0,0.00013972,2]
[334742854,1723528253466,-771.71,0.00013972,2]
[334742855,1723528253476,-1364.07,0.00013972,2]
[334742856,1723528253485,-500.0,0.00013972,2]
[334742857,1723528253495,-500.0,0.00013972,2]
[334742858,1723528253505,-500.0,0.00013972,2]
[334742859,1723528253517,-3788.04,0.00013972,2]
[334742860,1723528253527,-1116.51,0.00013972,2]
[334742861,1723528253539,-500.0,0.00013972,2]
[334742862,1723528253548,-500.0,0.00013972,2]
[334742863,1723528253558,-500.0,0.00013972,2]
[334742864,1723528253567,-600.77,0.00013972,2]
[334742865,1723528253577,-500.0,0.00013972,2]
[334742866,1723528253586,-500.0,0.00013972,2]
[334742867,1723528253596,-800.87,0.00013972,2]
[334742868,1723528253606,-512.12221757,0.00013972,2]
[334742869,1723528253615,-489.56585524,0.00013972,2]
[334742870,1723528253626,-500.0,0.00013972,2]
[334742871,1723528253637,-500.0,0.00013972,2]
[334742872,1723528253646,-500.0,0.00013972,2]
[334742873,1723528253656,-411.93110367,0.00013972,2]
[334742874,1723528253665,-500.0,0.00013972,2]
[334742875,1723528253676,-2565.68,0.00013972,2]
[334742876,1723528253687,-500.0,0.00013972,2]
[334742877,1723528253698,-502.77850894,0.00013972,2]
[334742878,1723528253708,-500.0,0.00013972,2]
[334742879,1723528253717,-500.0,0.00013972,2]
[334742880,1723528253729,-500.0,0.00013972,2]
[334742881,1723528253739,-504.58301167,0.00013972,2]
[334742882,1723528253752,-1364.68,0.00013972,2]
[334742883,1723528253766,-500.0,0.00013972,2]
[334742884,1723528253775,-472.66810665,0.00013972,2]
[334742885,1723528253784,-500.0,0.00013972,2]
[334742886,1723528253793,-1616.3,0.00013972,2]
[334742887,1723528253802,-500.0,0.00013972,2]
[334742888,1723528253811,-1295.46,0.00013972,2]
[334742889,1723528253820,-1371.68,0.00013972,2]
[334742890,1723528253830,-500.0,0.00013972,2]
[334742891,1723528253839,-507.34383413,0.00013972,2]
[334742892,1723528253848,-842.94,0.00013972,2]
[334742893,1723528253858,-500.0,0.00013972,2]
[334742894,1723528253867,-500.0,0.00013972,2]
[334742895,1723528253876,-500.0,0.00013972,2]
[334742896,1723528253885,-586.24,0.00013972,2]
[334742897,1723528253895,-500.0,0.00013972,2]
[334742898,1723528253904,-500.0,0.00013972,2]
[334742899,1723528253914,-709.22,0.00013972,2]
[334742900,1723528253924,-635.04,0.00013972,2]
[334742901,1723528253934,-1442.41,0.00013972,2]
[334742902,1723528253943,-1649.1,0.00013972,2]
[334742903,1723528253953,-500.0,0.00013972,2]
[334742904,1723528253962,-500.0,0.00013972,2]
[334742905,1723528253971,-500.0,0.00013972,2]
[334742906,1723528253981,-669.84,0.00013972,2]
[334742907,1723528253990,-500.0,0.00013972,2]
[334742908,1723528254000,-500.0,0.00013972,2]
[334742909,1723528254011,-500.0,0.00013972,2]
[334742910,1723528254020,-1298.96,0.00013972,2]
[334742911,1723528254029,-500.0,0.00013972,2]
[334742912,1723528254038,-630.11,0.00013972,2]
[334742913,1723528254047,-927.44,0.00013972,2]
[334742914,1723528254056,-5906.63,0.00013972,2]
[334742915,1723528254065,-500.0,0.00013972,2]
[334742916,1723528254075,-760.69,0.00013972,2]
[334742917,1723528254084,-500.0,0.00013972,2]
[334742918,1723528254093,-500.0,0.00013972,2]
[334742919,1723528254103,-500.0,0.00013972,2]
[334742920,1723528254115,-505.59683593,0.00013972,2]
[334742921,1723528254124,-500.0,0.00013972,2]
[334742922,1723528254133,-500.0,0.00013972,2]
[334742923,1723528254143,-508.67,0.00013972,2]
[334742924,1723528254152,-532.32832869,0.00013972,2]
[334742925,1723528254162,-2025.26,0.00013972,2]
[334742926,1723528254172,-1085.22,0.00013972,2]
[334742927,1723528254184,-806.94,0.00013972,2]
[334742928,1723528254193,-2737.51,0.00013972,2]
[334742929,1723528254202,-500.0,0.00013972,2]
[334742930,1723528254211,-500.0,0.00013972,2]
[334742931,1723528254221,-500.0,0.00013972,2]
[334742932,1723528254230,-500.0,0.00013972,2]
[334742933,1723528254239,-596.13,0.00013972,2]
[334742934,1723528254249,-500.0,0.00013972,2]
[334742935,1723528254258,-6282.86,0.00013972,2]
[334742936,1723528254267,-818.75,0.00013972,2]